bitfinex-derivatives/quotes_SOLF0:USTF0_20260308
["timestamp","ask_amount","ask_price","bid_price","bid_amount"]
[1772984170150,5.83116761,81.959,81.91,3.97266921]
[1772984170747,5.83116761,81.959,81.91,7.53209026]
[1772984171851,5.83116761,81.957,81.91,7.53209026]
[1772984172750,10.982,81.955,81.91,7.53209026]
[1772984172957,5.83116761,81.954,81.91,7.53209026]
[1772984173454,5.83116761,81.954,81.911,3.58106279]
[1772984176157,5.83116761,81.954,81.913,3.55262668]
[1772984177850,5.83116761,81.954,81.915,3.55543295]
[1772984178157,5.83116761,81.954,81.92,3.97266921]
[1772984184464,5.83116761,81.954,81.905,10.988]
[1772984185966,5.83116761,81.951,81.905,10.988]
[1772984187265,5.83116761,81.951,81.911,3.56145141]
[1772984188864,5.83116761,81.951,81.912,3.55603113]
[1772984200475,5.83116761,81.951,81.914,3.50976097]
[1772984200672,5.49080358,81.967,81.921,3.50976097]
[1772984200977,5.49080358,81.965,81.921,3.50976097]
[1772984202569,5.49080358,81.965,81.872,205.79022398]
[1772984202570,5.49080358,81.976,81.931,3.52454681]
[1772984208489,5.49080358,81.974,81.931,3.52454681]
[1772984210588,5.49080358,81.971,81.931,3.52454681]
[1772984211087,5.49080358,81.969,81.93,3.97266921]
[1772984211289,5.49080358,81.969,81.931,3.32382313]
[1772984212290,5.49080358,81.959,81.91,3.97266921]
[1772984212488,5.49080358,81.959,81.907,3.32859537]
[1772984213390,5.49080358,81.952,81.907,3.32859537]
[1772984213591,5.49080358,81.952,81.897,3.32761359]
[1772984213592,3.97266921,81.95,81.897,3.32761359]
[1772984213794,5.49080358,81.949,81.897,3.32761359]
[1772984214694,5.49080358,81.947,81.897,3.32761359]
[1772984214894,5.49080358,81.94,81.897,3.32761359]
[1772984216796,5.49080358,81.937,81.897,3.32761359]
[1772984218595,5.49080358,81.937,81.901,3.34897063]
[1772984224902,5.49080358,81.937,81.9,3.97152596]
[1772984225204,5.49080358,81.937,81.896,10.99]
[1772984225399,5.49080358,81.937,81.887,10.991]
[1772984225600,5.49080358,81.937,81.887,14.39716187]
[1772984225803,5.49080358,81.937,81.88,3.97152596]
[1772984226100,5.4701615,81.927,81.88,3.97152596]
[1772984226306,5.4701615,81.927,81.881,3.40403892]
[1772984226506,5.4701615,81.927,81.891,3.40403892]
[1772984233207,5.4701615,81.948,81.901,3.38188264]
[1772984234915,5.4701615,81.947,81.901,3.38188264]
[1772984235918,5.4701615,81.945,81.901,3.38188264]
[1772984239217,5.4701615,81.943,81.901,3.38188264]
[1772984239408,5.4701615,81.943,81.9,3.97152596]
[1772984239409,5.4701615,81.943,81.911,3.36090093]
[1772984244720,489.882533,81.992,81.865,21.988]
[1772984244721,5.4701615,81.963,81.93,3.97152596]
[1772984245019,5.4701615,81.963,81.94,3.97152596]
[1772984245920,16.4491615,81.973,81.94,3.97152596]
[1772984246122,5.4701615,81.972,81.94,3.97152596]
[1772984248925,5.4701615,81.972,81.922,3.3339825]
[1772984249130,5.4701615,81.969,81.899,3.3339825]
[1772984249331,5.4701615,81.967,81.91,3.97152596]
[1772984249623,5.4701615,81.959,81.91,3.97152596]
[1772984249832,3.97152596,81.96,81.91,3.97152596]
[1772984249833,5.4701615,81.943,81.91,3.97152596]
[1772984252331,5.4701615,81.941,81.91,3.97152596]
[1772984253231,5.4701615,81.941,81.9,3.97152596]
[1772984254634,5.4701615,81.941,81.91,3.97152596]
[1772984255836,5.27118489,81.954,81.92,3.97152596]
[1772984256429,5.27118489,81.951,81.91,3.97152596]
[1772984256731,5.27118489,81.951,81.9,10.989]
[1772984256732,5.27118489,81.951,81.9,3.97152596]
[1772984257726,10.983,81.947,81.9,3.97152596]
[1772984257929,5.27118489,81.946,81.9,3.97152596]
[1772984258633,5.27118489,81.946,81.91,3.97152596]
[1772984260038,5.27118489,81.946,81.91,7.24862817]
[1772984260638,5.27118489,81.955,81.92,3.97152596]
[1772984261133,5.27118489,81.955,81.921,3.27376975]
[1772984261330,5.27118489,81.967,81.93,3.97152596]
[1772984262631,5.27118489,81.967,81.93,7.24112356]
[1772984262837,5.27118489,81.967,81.931,3.2695976]
[1772984264633,5.27118489,81.967,81.93,3.97152596]
[1772984265338,5.27118489,81.965,81.92,3.97152596]
[1772984265539,474.76536844,81.992,81.872,205.79022398]
[1772984265540,5.27118489,81.959,81.9,3.97152596]
[1772984265835,5.27118489,81.957,81.9,7.10066555]
[1772984266245,5.27118489,81.957,81.901,3.12595318]
[1772984266445,5.27118489,81.957,81.911,3.12595318]
[1772984266646,5.27118489,81.957,81.92,3.97152596]
[1772984267944,5.27118489,81.957,81.911,3.12595318]
[1772984268142,5.27118489,81.954,81.91,3.97152596]
[1772984269847,3.97152596,81.97,81.91,3.97152596]
[1772984269848,5.27118489,81.951,81.91,3.97152596]
[1772984270147,5.27118489,81.951,81.911,3.11359299]
[1772984270345,5.27118489,81.951,81.92,3.97152596]
[1772984270545,467.8010341,81.989,81.921,3.11359299]
[1772984270546,10.981,81.96,81.921,3.11359299]
[1772984270749,16.25218489,81.96,81.921,3.11359299]
[1772984272352,5.27118489,81.96,81.921,3.11359299]
[1772984273051,5.27118489,81.986,81.941,3.10597659]
[1772984273253,5.27118489,81.984,81.941,3.10597659]
[1772984273452,5.27118489,81.982,81.941,3.10597659]
[1772984275050,5.27118489,81.982,81.95,3.97152596]
[1772984275954,5.27118489,81.982,81.942,10.983]
[1772984276154,5.27118489,81.982,81.943,3.10151012]
[1772984276750,5.27118489,81.982,81.94,3.97152596]
[1772984277549,5.27118489,81.982,81.94,3.96720967]
[1772984278962,5.27118489,81.978,81.931,3.06430936]
[1772984279566,5.27118489,81.978,81.941,3.06617951]
[1772984280267,467.8010341,81.989,81.941,3.06617951]
[1772984280268,473.07221899,81.989,81.941,3.06617951]
[1772984280467,473.07221899,81.989,81.933,10.985]
[1772984280468,473.07221899,81.989,81.95,7.03067687]
[1772984281060,5.27118489,81.989,81.951,3.06098838]
[1772984281262,5.27118489,82.009,81.97,3.96720967]
[1772984281466,5.27118489,82.007,81.97,3.96720967]
[1772984281769,5.27118489,82.007,81.96,7.02819805]
[1772984281965,5.27118489,82.007,81.961,3.14627273]
[1772984282770,5.23194983,82.004,81.961,3.14627273]
[1772984286273,5.73205652,82.0,81.961,3.14627273]
[1772984290365,5.73205652,82.011,81.971,3.14282506]
[1772984290766,5.73205652,82.043,81.99,3.96720967]
[1772984290970,10.971,82.035,82.0,3.96720967]
[1772984291376,463.71759235,82.049,82.011,3.14047769]
[1772984291674,5.73205652,82.057,82.011,3.14047769]
[1772984292872,10.969,82.053,82.011,3.14047769]
[1772984293272,5.73205652,82.043,82.0,3.96720967]
[1772984293578,5.73205652,82.039,81.98,3.96720967]
[1772984294270,5.73205652,82.029,81.97,3.96720967]
[1772984294476,5.73205652,82.009,81.953,3.0103631]
[1772984294666,5.73205652,82.009,81.961,3.01228785]
[1772984294867,5.73205652,82.009,81.97,3.96720967]
[1772984295067,5.73205652,82.009,81.971,2.98569279]
[1772984296978,3.96720967,82.02,81.971,2.98569279]
[1772984297174,5.73205652,82.022,81.971,2.98569279]
[1772984298282,5.73205652,82.019,81.971,2.98569279]
[1772984299782,5.73205652,82.017,81.971,2.98569279]
[1772984300380,16.70605652,82.014,81.971,2.98569279]
[1772984300586,5.73205652,82.013,81.971,2.98569279]
[1772984301483,5.73205652,82.01,81.971,2.98569279]
[1772984305080,5.73205652,82.029,81.981,2.53399602]
[1772984305987,10.973,82.019,81.981,2.53399602]
[1772984306183,5.73205652,82.041,81.991,2.51054333]
[1772984306483,5.73205652,82.041,82.001,2.51054333]
[1772984306991,5.73205652,82.038,81.992,10.977]
[1772984307883,5.73205652,82.036,81.992,10.977]
[1772984308689,16.70305652,82.032,81.99,3.96720967]
[1772984312288,5.73205652,82.031,81.99,3.96720967]
[1772984313090,5.73205652,82.031,81.992,2.28640668]
[1772984317395,5.30136432,82.027,81.98,3.96720967]
[1772984318889,5.30136432,82.025,81.98,3.96720967]
[1772984319995,5.30136432,82.023,81.976,2.27123688]
[1772984320196,5.30136432,82.023,81.974,10.979]
[1772984320497,5.30136432,82.019,81.974,10.979]
[1772984321890,5.30136432,82.017,81.974,10.979]
[1772984322090,5.30136432,82.017,81.98,3.96720967]
[1772984322291,5.30136432,82.017,81.98,6.16480088]
[1772984322693,5.30136432,82.017,81.981,2.19930593]
[1772984323091,5.30136432,82.017,81.982,10.978]
[1772984324696,5.30136432,82.017,81.983,2.20655914]
[1772984324900,10.971,82.034,81.983,2.20655914]
[1772984324901,5.30136432,82.033,81.983,2.20655914]
[1772984325097,5.30136432,82.03,81.983,2.20655914]
[1772984325700,5.30136432,82.03,81.985,10.978]
[1772984326301,5.30136432,82.03,81.99,3.96720967]
[1772984330903,5.30136432,82.026,81.983,2.20655914]
[1772984331297,10.972,82.027,81.983,2.20655914]
[1772984331298,10.972,82.025,81.983,2.20655914]
[1772984331503,5.30136432,82.024,81.983,2.20655914]
[1772984332606,5.30136432,82.022,81.983,2.20655914]
[1772984333908,16.27436432,82.02,81.983,2.20655914]
[1772984335414,5.30136432,82.019,81.983,2.20655914]
[1772984335711,5.30136432,82.017,81.96,2.22427266]
[1772984335907,5.30136432,82.015,81.96,6.19148233]
[1772984336104,5.30136432,82.012,81.961,2.20792247]
[1772984336308,5.30136432,82.012,81.971,2.20792247]
[1772984338415,5.30136432,82.012,81.98,3.96720967]
[1772984339617,5.30136432,82.012,81.973,2.04696093]
[1772984339915,10.974,82.01,81.973,2.04696093]
[1772984340613,5.30136432,82.009,81.973,2.04696093]
[1772984340917,5.30136432,82.009,81.97,3.96339955]
[1772984344010,4.97250523,82.006,81.97,3.96339955]
[1772984344214,4.97250523,82.006,81.962,2.0212448]
[1772984345920,4.97250523,82.006,81.964,10.98]
[1772984346420,4.80643122,82.02,81.98,3.96339955]
[1772984346620,4.80643122,82.018,81.98,3.96339955]
[1772984354114,4.80643122,82.018,81.973,10.979]
[1772984354422,4.80643122,82.018,81.974,1.79945646]
[1772984355427,4.80643122,82.016,81.98,3.96339955]
[1772984355921,4.80643122,82.014,81.98,3.96339955]
[1772984356127,4.80643122,82.014,81.974,1.79945646]
[1772984356926,4.80643122,82.012,81.974,1.79945646]
[1772984357319,3.96339955,82.03,81.97,3.96339955]
[1772984357320,15.78143122,82.003,81.97,3.96339955]
[1772984357522,4.80643122,82.002,81.963,1.76495405]
[1772984358527,4.80643122,82.002,81.97,3.96339955]
[1772984365440,4.80643122,82.002,81.972,10.979]
[1772984371634,4.80643122,82.002,81.964,10.98]
[1772984371838,4.80643122,82.002,81.96,3.96339955]
[1772984372843,4.61662224,82.0,81.96,3.96339955]
[1772984373844,4.61662224,81.998,81.951,1.69944037]
[1772984374242,4.61662224,81.998,81.96,3.96339955]
[1772984377247,4.61662224,81.998,81.952,12.60826969]
[1772984377446,4.61662224,81.998,81.96,3.96339955]
[1772984378644,4.61662224,81.998,81.952,12.60826969]
[1772984379141,4.61662224,81.998,81.952,1.62626969]
[1772984379443,4.61662224,81.994,81.944,529.35974066]
[1772984379649,4.61662224,81.992,81.944,529.35974066]
[1772984379950,4.61662224,81.989,81.944,202.02605519]
[1772984380143,4.61662224,81.987,81.944,202.02605519]
[1772984380447,4.61662224,81.985,81.944,202.02605519]
[1772984380646,4.61662224,81.983,81.944,202.02605519]
[1772984380842,4.61662224,82.0,81.961,1.59473545]
[1772984381042,22.22784468,82.007,81.961,1.59473545]
[1772984381043,4.61662224,81.998,81.961,1.59473545]
[1772984382550,4.61662224,81.998,81.951,1.58783989]
[1772984384642,4.61662224,81.992,81.951,1.58783989]
[1772984384846,4.61662224,81.992,81.95,3.96339955]
[1772984386850,4.61662224,81.992,81.944,202.02605519]
[1772984387051,4.61662224,81.989,81.95,3.96339955]
[1772984387252,4.61662224,81.989,81.944,202.02605519]
[1772984388357,4.61662224,81.987,81.944,202.02605519]
[1772984389056,3.96339955,81.98,81.944,169.24091414]
[1772984389247,3.96339955,81.98,81.93,3.96339955]
[1772984389448,3.96339955,81.98,81.931,12.18920485]
[1772984390856,10.979,81.972,81.931,12.18920485]
[1772984391451,3.96339955,81.98,81.931,12.18920485]
[1772984392251,10.98,81.967,81.931,12.18920485]
[1772984395956,10.979,81.975,81.931,12.18920485]
[1772984396159,3.96339955,81.99,81.931,12.18920485]
[1772984396359,9.87584113,81.989,81.931,12.18920485]
[1772984396554,3.96339955,81.99,81.931,12.18920485]
[1772984396760,9.87554997,81.989,81.931,12.18920485]
[1772984396960,9.87554997,81.988,81.931,12.18920485]
[1772984397161,9.87554997,81.987,81.931,12.18920485]
[1772984397362,9.87554997,81.986,81.931,12.18920485]
[1772984397662,3.96339955,81.99,81.931,12.18920485]
[1772984397961,10.979,81.976,81.931,12.18920485]
[1772984398561,10.98,81.97,81.931,12.18920485]
[1772984404069,10.981,81.963,81.931,12.18920485]
[1772984405470,10.98,81.97,81.931,12.18920485]
[1772984405970,10.98,81.97,81.94,3.96820101]
[1772984406171,10.98,81.97,81.941,12.32946724]
[1772984406470,3.96820101,82.0,81.941,12.32946724]
[1772984406471,10.978,81.979,81.941,12.32946724]
[1772984411268,3.96820101,81.99,81.926,12.33324217]
[1772984411475,3.96820101,81.97,81.926,12.33324217]
[1772984412872,10.982,81.954,81.926,12.33324217]
[1772984413078,3.96820101,81.99,81.931,12.33294382]
[1772984413278,9.86913473,81.989,81.94,3.96820101]
[1772984413477,9.86913473,81.988,81.94,3.96820101]
[1772984413672,9.86913473,81.987,81.94,3.96820101]
[1772984413976,9.86913473,81.986,81.931,12.33294382]
[1772984414169,3.96820101,81.99,81.931,12.33294382]
[1772984414374,9.87199523,81.989,81.931,12.33294382]
[1772984414575,9.87199523,81.988,81.931,12.33294382]
[1772984414776,10.98,81.971,81.931,12.33294382]
[1772984416681,3.96820101,81.99,81.931,12.33294382]
[1772984416880,3.96820101,81.98,81.931,12.33294382]
[1772984417782,10.98,81.965,81.931,12.33294382]
[1772984417983,3.96820101,81.98,81.931,12.33294382]
[1772984418179,9.87715913,81.979,81.931,12.33294382]
[1772984418482,9.87715913,81.978,81.931,12.33294382]
[1772984418679,9.87715913,81.977,81.931,12.33294382]
[1772984418881,9.87715913,81.976,81.931,12.33294382]
[1772984419081,3.96820101,81.98,81.931,12.33294382]
[1772984419282,9.87784571,81.979,81.931,12.33294382]
[1772984419583,9.87784571,81.978,81.931,12.33294382]
[1772984419782,10.98,81.965,81.931,12.33294382]
[1772984421781,3.96820101,81.98,81.931,12.33294382]
[1772984421975,9.87860321,81.979,81.931,12.33294382]
[1772984422176,9.87860321,81.978,81.931,12.33294382]
[1772984422484,9.87860321,81.977,81.931,12.33294382]
[1772984422685,9.87860321,81.976,81.931,12.33294382]
[1772984422884,10.981,81.959,81.931,12.33294382]
[1772984426780,10.98,81.968,81.931,12.33294382]
[1772984428585,10.981,81.961,81.931,12.33294382]
[1772984428983,3.96820101,81.98,81.931,12.33294382]
[1772984429186,9.89020769,81.979,81.931,12.33294382]
[1772984429386,9.89020769,81.978,81.931,12.33294382]
[1772984429587,9.89020769,81.977,81.931,12.33294382]
[1772984429886,10.98,81.968,81.931,12.33294382]
[1772984432286,10.981,81.961,81.931,12.33294382]
[1772984437187,11.25284468,81.99,81.931,12.33294382]
[1772984437490,9.9058094,81.989,81.941,12.08290518]
[1772984437691,10.98,81.967,81.941,0.00090518]
[1772984437891,10.98,81.967,81.92,3.96820101]
[1772984439692,10.98,81.967,81.921,6.04222045]
[1772984444692,10.981,81.959,81.921,6.04222045]
[1772984448202,10.982,81.953,81.921,6.04222045]
[1772984454706,10.983,81.946,81.911,6.04172325]
[1772984454901,21.956,81.984,81.889,6.04172325]
[1772984454902,3.96820101,81.94,81.889,6.04172325]
[1772984455203,9.88746094,81.939,81.889,6.04172325]
[1772984455408,10.986,81.926,81.881,6.04172325]
[1772984455707,3.96820101,81.93,81.881,6.04172325]
[1772984456813,10.987,81.919,81.881,6.04172325]
[1772984458809,476.69436964,81.943,81.901,6.03561565]
[1772984459012,11.25284468,81.973,81.91,3.96820101]
[1772984459211,3.96820101,81.96,81.91,3.96820101]
[1772984459411,9.8728661,81.959,81.901,6.03561565]
[1772984459610,10.982,81.95,81.901,6.03561565]
[1772984459811,3.97061746,81.94,81.888,6.03496405]
[1772984460012,3.97061746,81.93,81.888,6.03496405]
[1772984460416,3.97061746,81.93,81.88,3.97061746]
[1772984460616,3.97061746,81.92,81.87,10.05282128]
[1772984461017,10.987,81.916,81.871,6.08220382]
[1772984462818,10.988,81.909,81.871,6.08220382]
[1772984463015,3.97061746,81.93,81.871,6.08220382]
[1772984463815,3.97061746,81.91,81.86,3.97061746]
[1772984464013,3.97061746,81.91,81.858,6.11007011]
[1772984464219,3.97061746,81.9,81.858,6.11007011]
[1772984465212,10.99,81.891,81.85,3.97061746]
[1772984465418,3.97061746,81.88,81.821,6.11479913]
[1772984465923,9.8256047,81.919,81.771,22.013]
[1772984465924,3.97061746,81.89,81.831,6.11430542]
[1772984466117,3.97061746,81.9,81.841,6.11430542]
[1772984466324,3.97061746,81.9,81.85,3.97061746]
[1772984466325,10.99,81.894,81.85,3.97061746]
[1772984466623,3.97061746,81.93,81.871,6.12271043]
[1772984467026,10.988,81.911,81.871,6.12271043]
[1772984467622,10.989,81.903,81.851,6.12224107]
[1772984467822,3.97061746,81.9,81.841,6.12224107]
[1772984468928,10.991,81.887,81.841,6.12224107]
[1772984470124,10.992,81.878,81.833,6.23268968]
[1772984471222,21.979,81.9,81.816,6.25753667]
[1772984471421,3.97061746,81.87,81.816,6.25753667]
[1772984471825,10.995,81.857,81.816,6.25753667]
[1772984472030,3.97061746,81.87,81.816,6.25753667]
[1772984472930,10.996,81.849,81.816,6.25753667]
[1772984473434,10.995,81.859,81.816,6.25753667]
[1772984474028,3.97061746,81.89,81.841,6.25736308]
[1772984474329,3.97061746,81.88,81.825,6.25736308]
[1772984474529,3.97061746,81.87,81.81,3.97061746]
[1772984474927,10.995,81.854,81.81,3.97061746]
[1772984475829,10.995,81.854,81.811,6.21013858]
[1772984476930,10.994,81.863,81.82,3.97061746]
[1772984478730,10.994,81.863,81.83,10.25983441]
[1772984478938,10.994,81.863,81.831,6.28921695]
[1772984481737,11.25284468,81.927,81.78,62.0]
[1772984481738,3.97061746,81.9,81.85,3.97061746]
[1772984482441,3.97061746,81.91,81.85,3.97061746]
[1772984483238,10.992,81.879,81.85,3.97061746]
[1772984483935,10.992,81.879,81.841,6.29792667]
[1772984487236,10.991,81.887,81.85,3.97061746]
[1772984487441,10.991,81.887,81.851,6.33814844]
[1772984490634,3.97061746,81.9,81.843,6.34708]
[1772984492239,10.991,81.883,81.843,6.34708]
[1772984492951,10.991,81.883,81.851,6.35040745]
[1772984494846,10.99,81.891,81.851,6.35040745]
[1772984496750,10.99,81.891,81.86,3.97061746]
[1772984498850,10.99,81.891,81.851,6.35040745]
[1772984506053,10.989,81.903,81.861,6.48122091]
[1772984506359,3.97061746,81.94,81.89,3.97061746]
[1772984507259,10.987,81.918,81.89,3.97061746]
[1772984507460,10.987,81.918,81.881,6.48122091]
[1772984507660,3.97061746,81.94,81.881,6.48122091]
[1772984507962,10.986,81.926,81.891,6.48297179]
[1772984517663,3.97061746,81.95,81.891,6.48297179]
[1772984517966,10.983,81.948,81.92,3.97061746]
[1772984518166,10.983,81.948,81.911,6.44184619]
[1772984518863,10.984,81.941,81.91,3.97061746]
[1772984519064,3.97061746,81.97,81.911,6.44209633]
[1772984519470,10.981,81.958,81.911,6.44209633]
[1772984520467,10.981,81.958,81.921,6.44204757]
[1772984520772,10.982,81.951,81.91,6.56587121]
[1772984520965,10.982,81.951,81.91,10.53648867]
[1772984521167,10.982,81.951,81.911,6.56587121]
[1772984521369,10.982,81.951,81.92,3.97061746]
[1772984521570,10.982,81.951,81.911,6.56587121]
[1772984523663,10.983,81.942,81.911,6.56587121]
[1772984525583,10.983,81.942,81.872,206.30209923]
[1772984525584,10.983,81.942,81.887,6.5587483]
[1772984525773,10.983,81.942,81.9,10.52782279]
[1772984526076,10.984,81.935,81.9,10.52782279]
[1772984526667,10.985,81.927,81.9,6.5587483]
[1772984526872,10.985,81.927,81.889,6.55892614]
[1772984527873,3.96907449,81.91,81.862,6.55894503]
[1772984528876,10.989,81.904,81.862,6.55894503]
[1772984536081,3.96907449,81.93,81.871,6.51934858]
[1772984536283,3.96907449,81.93,81.881,6.51934858]
[1772984537884,10.986,81.921,81.881,6.51934858]
[1772984539087,10.987,81.918,81.881,6.51934858]
[1772984539983,10.988,81.911,81.87,6.53327849]
[1772984541790,465.13801995,81.933,81.881,6.53555298]
[1772984542082,3.96907449,81.93,81.881,6.53555298]
[1772984542889,10.985,81.928,81.881,6.53555298]
[1772984543889,465.13801995,81.933,81.891,6.53003295]
[1772984547993,10.985,81.93,81.891,6.53003295]
[1772984552699,465.13801995,81.933,81.891,6.53003295]
[1772984555500,465.13801995,81.933,81.882,10.991]
[1772984555501,3.96907449,81.93,81.875,6.59339514]
[1772984555700,3.96907449,81.93,81.88,3.96907449]
[1772984555906,465.13801995,81.933,81.88,3.96907449]
[1772984556201,465.13801995,81.933,81.881,6.5934211]
[1772984556798,10.986,81.926,81.881,6.5934211]
[1772984556994,3.96907449,81.91,81.833,6.59181662]
[1772984557194,3.96907449,81.91,81.851,6.59181662]
[1772984559003,3.96907449,81.92,81.861,6.57591842]
[1772984559904,10.987,81.914,81.861,6.57591842]
[1772984560398,3.96907449,81.91,81.861,6.57591842]
[1772984560895,10.988,81.909,81.861,6.57591842]
[1772984561497,10.989,81.902,81.861,6.57591842]
[1772984562603,465.13801995,81.933,81.861,6.54430457]
[1772984562806,465.13801995,81.933,81.881,6.54430457]
[1772984563807,10.985,81.929,81.881,6.54430457]
[1772984565207,3.96907449,81.92,81.881,6.54430457]
[1772984566512,10.985,81.929,81.881,6.54430457]
[1772984567013,10.984,81.937,81.881,6.54430457]
[1772984568312,10.984,81.937,81.883,6.58637817]
[1772984569813,10.984,81.937,81.889,6.62833763]
[1772984570811,10.984,81.937,81.89,10.99]
[1772984571016,10.984,81.937,81.891,6.62683021]
[1772984572719,3.96907449,81.94,81.881,6.64793425]
[1772984573907,10.984,81.937,81.892,6.64797196]
[1772984584322,10.983,81.945,81.892,6.64797196]
[1772984584822,10.984,81.937,81.892,6.64797196]
[1772984593730,10.984,81.937,81.895,6.67337392]
[1772984594522,10.983,81.947,81.901,6.66814681]
[1772984594922,473.93814222,81.953,81.904,10.988]
[1772984595131,473.93814222,81.953,81.905,6.66814681]
[1772984595532,471.78267975,81.97,81.911,6.66814681]
[1772984596633,471.78267975,81.97,81.921,6.66421563]
[1772984596933,10.98,81.965,81.921,6.66421563]
[1772984600334,10.979,81.974,81.923,6.65018485]
[1772984601241,10.979,81.974,81.926,6.63926637]
[1772984605836,3.97215265,81.96,81.91,3.97215265]
[1772984606034,3.97215265,81.95,81.902,6.64137958]
[1772984606637,3.97215265,81.96,81.902,6.64137958]
[1772984606947,3.97215265,81.96,81.913,6.6428233]
[1772984607338,10.981,81.964,81.915,6.6428233]
[1772984608738,10.981,81.964,81.916,10.987]
[1772984608939,10.981,81.964,81.917,6.63403171]
[1772984610645,10.981,81.964,81.92,6.63791099]
[1772984634857,10.98,81.971,81.921,6.63803542]
[1772984635153,9.90211187,81.97,81.921,6.63803542]
[1772984635354,9.90211187,81.969,81.921,6.63803542]
[1772984635655,471.77873952,81.975,81.921,6.63803542]
[1772984635957,10.98,81.968,81.923,6.63805155]
[1772984637157,10.98,81.966,81.923,6.63805155]
[1772984637747,471.77873952,81.975,81.922,10.986]
[1772984637748,10.979,81.973,81.931,6.62791547]
[1772984644462,10.979,81.973,81.928,10.985]
[1772984645157,10.979,81.973,81.928,17.56591956]
[1772984645563,10.979,81.973,81.929,6.58091956]
[1772984646266,10.979,81.973,81.931,6.58092612]
[1772984658566,3.96768302,81.97,81.922,6.62584409]
[1772984658772,9.8999746,81.969,81.922,6.62584409]
[1772984658972,3.96768302,81.96,81.922,6.62584409]
[1772984659172,10.982,81.949,81.907,6.62584409]
[1772984661069,10.982,81.956,81.907,6.62584409]
[1772984661570,3.96768302,81.95,81.907,6.62584409]
[1772984662785,10.984,81.942,81.907,6.62584409]
[1772984662986,3.96768302,81.94,81.893,6.62969252]
[1772984663174,9.88964205,81.939,81.893,6.62969252]
[1772984663378,3.96768302,81.94,81.893,6.62969252]
[1772984663676,9.88275392,81.939,81.893,6.62969252]
[1772984663979,3.96768302,81.94,81.893,6.62969252]
[1772984664181,9.88275561,81.939,81.893,6.62969252]
[1772984664371,3.96768302,81.94,81.893,6.62969252]
[1772984664879,10.984,81.935,81.893,6.62969252]
[1772984682195,10.983,81.942,81.901,6.68533483]
[1772984683498,3.96768302,81.95,81.901,6.68533483]
[1772984684798,10.985,81.929,81.901,6.68533483]
[1772984688497,3.96768302,81.96,81.901,6.68533483]
[1772984688699,9.92931803,81.959,81.901,6.68533483]
[1772984688999,9.92931803,81.958,81.901,6.68533483]
[1772984689200,9.92931803,81.957,81.901,6.68533483]
[1772984689401,9.92931803,81.956,81.901,6.68533483]
[1772984689602,3.96768302,81.95,81.901,6.68533483]
[1772984689901,10.984,81.938,81.901,6.68533483]
[1772984690403,10.985,81.932,81.901,6.68533483]
[1772984690896,3.96768302,81.95,81.901,6.68533483]
[1772984691098,3.96768302,81.94,81.892,6.77880983]
[1772984691401,3.96768302,81.95,81.892,6.77880983]
[1772984691601,3.96768302,81.95,81.891,326.14258807]
[1772984691602,3.96768302,81.95,81.9,10.74651424]
[1772984691901,21.962,81.964,81.901,6.77883122]
[1772984691902,10.984,81.935,81.901,6.77883122]
[1772984697099,10.986,81.921,81.883,6.75790935]
[1772984697403,9.94425581,81.949,81.891,6.75790935]
[1772984697597,9.94425581,81.948,81.891,6.75790935]
[1772984697795,9.94425581,81.947,81.891,6.75790935]
[1772984697997,3.96768302,81.95,81.891,6.75790935]
[1772984698202,9.94377213,81.949,81.891,6.75790935]
[1772984698398,3.96768302,81.94,81.873,6.75792432]
[1772984698604,9.94377213,81.939,81.873,6.75792432]
[1772984698905,3.96768302,81.93,81.873,6.75792432]
[1772984699204,3.96768302,81.93,81.88,3.96768302]
[1772984699402,10.989,81.904,81.88,3.96768302]
[1772984699703,3.96768302,81.9,81.85,3.96768302]
[1772984700000,479.89379212,81.91,81.861,41.52974428]
[1772984700199,10.989,81.9,81.861,41.52974428]
[1772984700802,3.96768302,81.9,81.85,3.96768302]
[1772984701005,3.96768302,81.9,81.84,3.96768302]
[1772984701499,3.96768302,81.9,81.85,3.96768302]
[1772984701803,475.9261091,81.91,81.87,3.96768302]
[1772984702007,475.9261091,81.91,81.86,3.96768302]
[1772984702510,22.56267269,81.954,81.805,12.36523651]
[1772984702511,3.96768302,81.93,81.88,3.96768302]
[1772984702707,9.95397999,81.929,81.88,3.96768302]
[1772984702901,9.95397999,81.928,81.881,32.27848232]
[1772984703103,9.95397999,81.927,81.881,32.27848232]
[1772984703306,9.95397999,81.926,81.881,32.27848232]
[1772984703502,9.95397999,81.925,81.881,32.27848232]
[1772984703708,3.97295784,81.94,81.89,36.25395681]
[1772984703909,9.96032814,81.939,81.89,36.25395681]
[1772984704209,9.96032814,81.938,81.89,36.25395681]